bitfinex/quotes_BTCUSD_20250303
["timestamp","ask_amount","ask_price","bid_price","bid_amount"]
[1740997883358,0.16352763,92315.0,92314.0,0.001]
[1740997883670,0.16252763,92315.0,92314.0,0.001]
[1740997884998,4.063e-05,92315.0,92307.0,0.1625]
[1740997885343,4.063e-05,92315.0,92300.0,0.18101787]
[1740997885495,4.063e-05,92315.0,92306.0,0.162502]
[1740997885496,0.162491,92313.0,92306.0,0.162502]
[1740997885698,0.162492,92312.0,92306.0,0.162502]
[1740997886100,0.162492,92312.0,92305.0,0.162504]
[1740997886506,0.001,92313.0,92300.0,0.0011703]
[1740997886708,0.001,92313.0,92300.0,0.0001703]
[1740997886912,0.162497,92310.0,92302.0,0.16251]
[1740997887115,0.001,92313.0,92306.0,0.002]
[1740997887321,0.001,92313.0,92306.0,0.164502]
[1740997887562,0.162494,92312.0,92306.0,0.002]
[1740997887748,0.162494,92312.0,92306.0,0.164501]
[1740997888291,0.16249,92313.0,92307.0,0.162501]
[1740997888711,0.216651,92314.0,92306.0,0.162502]
[1740997888915,4.063e-05,92315.0,92300.0,0.0001703]
[1740997889337,4.063e-05,92315.0,92306.0,0.002]
[1740997889538,4.063e-05,92315.0,92300.0,0.0001703]
[1740997889744,0.162491,92313.0,92306.0,0.001]
[1740997889945,0.162492,92313.0,92306.0,0.001]
[1740997890151,0.162492,92313.0,92302.0,0.162508]
[1740997890326,0.01699688,92312.0,92311.0,0.162494]
[1740997891956,0.01699688,92312.0,92310.0,0.162495]
[1740997892205,0.01699688,92312.0,92310.0,0.162494]
[1740997892382,0.01699688,92312.0,92308.0,0.216665]
[1740997892691,0.01699688,92312.0,92311.0,0.162494]
[1740997892854,0.01699688,92312.0,92311.0,0.164494]
[1740997893263,0.01699688,92312.0,92311.0,0.162494]
[1740997895521,0.01699688,92312.0,92311.0,0.163494]
[1740997895692,0.01699688,92312.0,92311.0,0.165494]
[1740997895894,0.01699688,92312.0,92311.0,0.164494]
[1740997896216,0.0003408,92313.0,92311.0,0.164494]
[1740997896217,0.0003408,92313.0,92312.0,0.162492]
[1740997897230,0.0003408,92313.0,92312.0,0.243192]
[1740997897613,0.0003408,92313.0,92312.0,0.248192]
[1740997898456,0.0003408,92313.0,92312.0,0.24970818]
[1740997898955,0.0003408,92313.0,92312.0,0.25370818]
[1740997899155,0.0003408,92313.0,92312.0,0.252192]
[1740997901101,0.0003408,92313.0,92312.0,0.879292]
[1740997901302,0.0003408,92313.0,92312.0,0.93883285]
[1740997901720,4.3e-07,92315.0,92314.0,0.25752885]
[1740997901865,4.3e-07,92315.0,92314.0,0.30322885]
[1740997902235,4.3e-07,92315.0,92314.0,0.60322885]
[1740997902561,4.3e-07,92315.0,92314.0,0.60222885]
[1740997903895,0.0003404,92352.0,92351.0,0.162423]
[1740997904255,0.0003404,92352.0,92351.0,0.16254268]
[1740997904391,0.0003404,92352.0,92351.0,0.16405843]
[1740997904615,0.0003404,92352.0,92351.0,0.16254268]
[1740997904845,0.0003404,92352.0,92351.0,0.00011968]
[1740997905044,0.0003404,92352.0,92351.0,0.16254268]
[1740997905647,0.0003404,92352.0,92351.0,0.15254268]
[1740997908004,0.01732825,92352.0,92351.0,0.15254268]
[1740997908610,0.0003404,92352.0,92351.0,0.15254268]
[1740997908789,0.0003404,92352.0,92351.0,0.15354268]
[1740997908987,0.0003404,92352.0,92351.0,0.15154268]
[1740997909372,0.0003404,92352.0,92351.0,0.15054268]
[1740997909854,0.0003404,92352.0,92351.0,0.15554268]
[1740997915646,0.0003404,92352.0,92351.0,0.82774268]
[1740997915855,6e-07,92356.0,92355.0,0.55405685]
[1740997916040,0.0003014,92361.0,92360.0,0.162407]
[1740997916234,0.0003014,92361.0,92360.0,1.59958785]
[1740997918325,0.0003014,92361.0,92360.0,1.54958785]
[1740997918527,0.0003014,92361.0,92360.0,1.61358785]
[1740997918826,0.0003014,92361.0,92360.0,1.64285542]
[1740997919032,0.0003014,92361.0,92360.0,1.60658785]
[1740997919468,4e-07,92361.0,92360.0,1.61358785]
[1740997919835,0.01738251,92379.0,92378.0,0.243076]
[1740997920033,0.01738251,92379.0,92378.0,0.58471685]
[1740997920973,0.0003408,92394.0,92378.0,0.58471685]
[1740997920974,8e-07,92383.0,92382.0,0.462369]
[1740997921273,8e-07,92383.0,92382.0,0.88084985]
[1740997921499,8e-07,92383.0,92382.0,1.00884985]
[1740997921615,8e-07,92383.0,92382.0,1.06884117]
[1740997921819,8e-07,92383.0,92382.0,0.9895736]
[1740997922216,8e-07,92383.0,92382.0,1.0465736]
[1740997922422,6.8e-07,92383.0,92382.0,1.07584117]
[1740997922691,6.8e-07,92383.0,92382.0,1.11884117]
[1740997922972,6.8e-07,92383.0,92382.0,1.13284117]
[1740997923148,6.8e-07,92383.0,92382.0,0.958269]
[1740997923349,6.8e-07,92383.0,92382.0,0.951269]
[1740997924077,6.8e-07,92383.0,92382.0,1.02849948]
[1740997924372,6.8e-07,92383.0,92382.0,1.16000483]
[1740997924514,6.8e-07,92383.0,92382.0,1.16700483]
[1740997924716,6.8e-07,92383.0,92382.0,1.14224033]
[1740997924916,8e-07,92394.0,92393.0,0.55488985]
[1740997925140,3e-08,92394.0,92393.0,1.50022033]
[1740997925373,3e-08,92394.0,92393.0,1.57498483]
[1740997926115,0.0003406,92407.0,92393.0,0.76108483]
[1740997926332,6e-07,92407.0,92406.0,0.60586785]
[1740997926696,0.01697624,92440.0,92418.0,0.55664685]
[1740997926899,1e-06,92419.0,92418.0,1.42754685]
[1740997927184,1e-06,92419.0,92418.0,1.47954183]
[1740997927691,1e-06,92419.0,92418.0,1.43843808]
[1740997927833,1e-06,92419.0,92418.0,1.51523808]
[1740997928034,1e-06,92419.0,92418.0,1.35863808]
[1740997928235,1e-06,92419.0,92418.0,1.34409723]
[1740997928655,1e-06,92419.0,92418.0,1.35863808]
[1740997929267,1e-06,92419.0,92418.0,1.36563808]
[1740997929691,1e-06,92419.0,92418.0,1.37263808]
[1740997929941,1e-06,92419.0,92418.0,1.39986856]
[1740997930352,1e-06,92419.0,92418.0,1.42017639]
[1740997930518,1e-06,92419.0,92418.0,1.36734808]
[1740997930688,1e-06,92419.0,92418.0,1.39751238]
[1740997930893,1e-06,92419.0,92418.0,1.36034808]
[1740997931101,1e-06,92419.0,92418.0,1.36734808]
[1740997931290,1e-06,92419.0,92418.0,1.39051238]
[1740997931687,1e-06,92419.0,92418.0,1.36034808]
[1740997931882,1e-06,92419.0,92418.0,1.39051238]
[1740997932124,1e-06,92419.0,92418.0,1.36734808]
[1740997932353,1e-06,92419.0,92418.0,1.40565498]
[1740997932573,1e-06,92419.0,92418.0,1.36094983]
[1740997932741,1e-06,92419.0,92418.0,1.35280723]
[1740997933650,1e-06,92419.0,92418.0,1.39751238]
[1740997934060,1e-06,92419.0,92418.0,1.36734808]
[1740997935025,1e-06,92419.0,92418.0,1.39751238]
[1740997936407,1e-06,92419.0,92418.0,1.36734808]
[1740997936609,1e-06,92419.0,92418.0,1.39751238]
[1740997936913,1e-06,92419.0,92418.0,0.85371238]
[1740997937291,1e-06,92419.0,92418.0,0.82354808]
[1740997937638,1e-06,92419.0,92418.0,0.88009362]
[1740997938615,1e-06,92419.0,92418.0,0.85371238]
[1740997939395,1e-06,92419.0,92418.0,0.95969362]
[1740997940420,1e-06,92419.0,92418.0,0.93331238]
[1740997941182,1e-06,92419.0,92418.0,0.80900723]
[1740997941556,1e-06,92419.0,92418.0,0.35199123]
[1740997941763,1e-06,92419.0,92418.0,0.18753763]
[1740997942122,0.0001712,92419.0,92418.0,0.1696464]
[1740997942364,0.0001712,92419.0,92418.0,0.16416107]
[1740997942757,0.0001712,92419.0,92418.0,0.1696464]
[1740997943337,0.0001712,92419.0,92418.0,0.18094428]
[1740997943759,0.1624752,92419.0,92418.0,0.0073404]
[1740997943961,0.1624752,92419.0,92418.0,0.0143404]
[1740997944182,0.25358855,92419.0,92418.0,0.0143404]
[1740997944555,0.55358855,92419.0,92418.0,0.0143404]
[1740997944904,0.14078455,92419.0,92382.0,0.0003404]
[1740997945056,0.3129,92418.0,92382.0,0.0003404]
[1740997945303,0.3,92414.0,92382.0,0.00046063]
[1740997945521,0.01698241,92410.0,92382.0,0.00046063]
[1740997945681,0.01698241,92410.0,92385.0,0.216484]
[1740997945887,0.3,92412.0,92385.0,0.216483]
[1740997946182,0.3129,92418.0,92382.0,0.00046063]
[1740997946591,0.003,92414.0,92404.0,0.16233]
[1740997946944,0.162321,92409.0,92399.0,0.162337]
[1740997947244,0.3,92414.0,92390.0,0.18084757]
[1740997947446,0.3,92414.0,92397.0,0.216456]
[1740997947645,0.006,92410.0,92390.0,0.18084757]
[1740997947868,0.162339,92399.0,92388.0,0.162357]
[1740997948070,0.162338,92400.0,92389.0,0.162355]
[1740997948229,0.162338,92400.0,92380.0,0.18084757]
[1740997948230,0.162335,92402.0,92391.0,0.162352]
[1740997948436,0.162334,92402.0,92392.0,0.16235]
[1740997948662,0.01698057,92400.0,92392.0,0.16235]
[1740997948860,0.01698057,92400.0,92380.0,0.18084757]
[1740997949061,0.01698057,92400.0,92388.0,0.003]
[1740997949261,0.162351,92393.0,92383.0,0.162367]
[1740997949602,0.01798057,92400.0,92382.0,0.00197597]
[1740997949807,0.01798057,92400.0,92392.0,0.001]
[1740997949923,0.01798057,92400.0,92382.0,0.00046063]
[1740997950121,0.01798057,92400.0,92393.0,0.162349]
[1740997950362,0.01698057,92400.0,92391.0,0.21647]
[1740997950567,0.01698057,92400.0,92382.0,0.00046063]
[1740997950771,0.01898057,92400.0,92383.0,0.00151525]
[1740997951288,0.01698057,92400.0,92392.0,0.162351]
[1740997951459,0.01698057,92400.0,92382.0,0.00046063]
[1740997951665,0.02098057,92400.0,92384.0,0.216487]
[1740997952049,0.01698057,92400.0,92397.0,0.162342]
[1740997952248,0.01698057,92400.0,92385.0,0.00151522]
[1740997952443,0.02098057,92400.0,92395.0,0.216461]
[1740997952763,0.02098057,92400.0,92382.0,0.00046063]
[1740997952933,0.02098057,92400.0,92399.0,0.162339]
[1740997953346,0.02098057,92400.0,92397.0,0.001]
[1740997953559,0.01698057,92400.0,92392.0,0.162351]
[1740997953759,0.01698057,92400.0,92381.0,0.01454085]
[1740997953970,0.01998057,92400.0,92395.0,0.216461]
[1740997954164,0.01998057,92400.0,92398.0,0.162341]
[1740997954320,0.01698057,92400.0,92383.0,0.0003404]
[1740997954524,0.01698057,92400.0,92399.0,0.162339]
[1740997955243,0.162318,92411.0,92399.0,0.162339]
[1740997955447,0.16232,92410.0,92400.0,0.162337]
[1740997955638,0.3210801,92418.0,92380.0,0.18084757]
[1740997955868,0.0210801,92418.0,92399.0,0.003]
[1740997956069,0.3210801,92418.0,92383.0,0.2168294]
[1740997956271,0.0210801,92418.0,92387.0,0.162359]
[1740997956480,0.3210801,92418.0,92399.0,0.001]
[1740997956645,0.3210801,92418.0,92383.0,0.0003404]
[1740997956646,0.162365,92384.0,92383.0,0.0003404]
[1740997957660,0.0765,92391.0,92383.0,0.0003404]
[1740997957880,0.216473,92390.0,92383.0,0.0003404]
[1740997958111,0.162365,92384.0,92383.0,0.0003404]
[1740997958650,0.162365,92384.0,92383.0,0.0053404]
[1740997958852,0.01698287,92389.0,92383.0,0.0003404]
[1740997959166,0.01698287,92389.0,92383.0,0.2168294]
[1740997959507,0.01698287,92389.0,92383.0,0.0033404]
[1740997959856,0.01698287,92389.0,92388.0,0.162358]
[1740997960087,0.01698287,92389.0,92383.0,0.0003404]
[1740997960335,0.01698287,92389.0,92388.0,0.162358]
[1740997960942,0.01698287,92389.0,92386.0,0.216481]
[1740997960943,0.01698287,92389.0,92383.0,0.0063404]
[1740997961141,0.01698287,92389.0,92383.0,0.0053404]
[1740997961376,0.01698287,92389.0,92384.0,0.162365]
[1740997961561,0.01698287,92389.0,92388.0,0.001]
[1740997961970,0.17933887,92389.0,92388.0,0.001]
[1740997962388,0.17933887,92389.0,92388.0,0.004]
[1740997963237,0.17933887,92389.0,92383.0,0.0003404]
[1740997963238,0.162365,92384.0,92383.0,0.0003404]
[1740997963449,0.162365,92384.0,92383.0,0.0013404]
[1740997963850,0.162365,92384.0,92383.0,0.0003404]
[1740997965482,0.162365,92384.0,92383.0,0.0023404]
[1740997967842,0.05412466,92392.0,92383.0,0.0023404]
[1740997967843,0.0461,92392.0,92383.0,0.0023404]
[1740997968042,0.3,92403.0,92383.0,0.1647064]
[1740997968258,0.0453,92404.0,92383.0,0.0023404]
[1740997968604,0.162359,92388.0,92383.0,0.0023404]
[1740997968770,0.0453,92404.0,92383.0,0.0003404]
[1740997968771,0.216469,92392.0,92383.0,0.0003404]
[1740997968977,0.16236,92387.0,92383.0,0.0003404]
[1740997969284,0.3,92397.0,92383.0,0.2168284]
[1740997969514,0.01698296,92399.0,92387.0,0.162359]
[1740997969711,0.01698296,92399.0,92383.0,0.0003404]
[1740997969825,0.3,92397.0,92384.0,0.162364]
[1740997970035,0.162349,92394.0,92385.0,0.162362]
[1740997970243,0.16235,92393.0,92385.0,0.162362]
[1740997970441,0.003,92392.0,92385.0,0.162362]
[1740997970775,0.003,92392.0,92385.0,0.162363]
[1740997971102,0.162352,92392.0,92384.0,0.162365]
[1740997971458,0.004,92394.0,92383.0,0.0023404]
[1740997971663,0.004,92394.0,92383.0,0.0003404]
[1740997971865,0.162365,92384.0,92383.0,0.0003404]
[1740997972456,0.01698297,92384.0,92383.0,0.0003404]
[1740997973219,0.01698297,92384.0,92383.0,0.0023404]
[1740997973415,0.17934797,92384.0,92383.0,0.0023404]
[1740997975023,0.01698297,92384.0,92383.0,0.0023404]
[1740997975231,0.17934797,92384.0,92383.0,0.0023404]
[1740997975667,0.162365,92384.0,92383.0,0.0023404]
[1740997979157,0.17934887,92384.0,92383.0,0.0023404]
[1740997981230,0.17901621,92384.0,92383.0,0.0023404]
[1740997982548,0.93121621,92384.0,92383.0,0.0023404]
[1740997982753,0.94575706,92384.0,92383.0,0.0023404]
[1740997982974,1.1046735,92384.0,92383.0,0.0023404]
[1740997983180,1.04575706,92384.0,92383.0,4e-07]
[1740997983557,0.52690785,92383.0,92382.0,0.00046063]
[1740997983785,0.60440785,92383.0,92382.0,0.00046063]
[1740997983990,0.05,92376.0,92351.0,0.0001702]
[1740997984191,0.462422,92352.0,92351.0,0.0001702]
[1740997984571,0.47941326,92352.0,92351.0,0.0001702]
[1740997984961,0.47696285,92352.0,92351.0,0.0001702]
[1740997985752,0.47708257,92352.0,92351.0,0.0001702]
[1740997985887,0.48835267,92352.0,92351.0,0.0001702]
[1740997986092,0.47381182,92352.0,92351.0,0.0011702]
[1740997986739,0.47581182,92352.0,92351.0,0.0011702]
[1740997987779,0.49280269,92352.0,92351.0,0.0011702]
[1740997988484,0.47581182,92352.0,92351.0,0.0011702]
[1740997989882,0.56535267,92352.0,92351.0,0.0011702]
[1740997990283,0.99510099,92352.0,92351.0,0.0011702]
[1740997990496,0.88945267,92352.0,92351.0,0.0011702]
[1740997990728,0.88745267,92352.0,92351.0,0.0011702]
[1740997991258,0.90444441,92352.0,92351.0,0.0011702]
[1740997991457,0.90844441,92352.0,92351.0,0.0001702]
[1740997991670,0.89390356,92352.0,92351.0,0.0001702]
[1740997991877,0.89590356,92352.0,92351.0,0.0001702]
[1740997992676,0.89190356,92352.0,92351.0,0.0001702]
[1740997992892,0.91144441,92352.0,92351.0,0.0001702]
[1740997993643,0.89690356,92352.0,92351.0,0.0001702]
[1740997994602,0.91144441,92352.0,92351.0,0.0001702]
[1740997995001,0.95704441,92352.0,92351.0,0.0001702]
[1740997995395,1.00704441,92352.0,92351.0,0.0001702]
[1740997995603,0.162471,92324.0,92312.0,0.1620004]
[1740997995839,0.162471,92324.0,92309.0,0.216662]
[1740997995840,0.162471,92324.0,92313.0,0.16249]
[1740997996074,0.07668,92341.0,92309.0,0.01119235]
[1740997996206,0.07668,92341.0,92307.0,0.0816]
[1740997996399,0.162464,92328.0,92311.0,0.216658]
[1740997996598,0.37668,92341.0,92307.0,0.0816]
[1740997996859,0.162477,92321.0,92310.0,0.00057118]
[1740997997240,0.162478,92320.0,92310.0,0.00057118]
[1740997997436,0.3,92334.0,92310.0,0.00057118]
[1740997997835,0.162469,92325.0,92314.0,0.162488]
[1740997998318,0.162469,92325.0,92311.0,0.216658]
[1740997998630,0.516591,92340.0,92312.0,0.218654]
[1740997998947,0.0599271,92339.0,92310.0,0.00057118]
[1740997999065,0.162477,92321.0,92310.0,0.16306618]
[1740997999270,0.3,92332.0,92314.0,0.002]
[1740997999495,0.16104083,92321.0,92310.0,0.16306618]
[1740997999990,0.162474,92323.0,92311.0,0.162493]
[1740998000191,0.162476,92322.0,92311.0,0.162494]
[1740998000426,0.17947015,92321.0,92310.0,0.16306618]
[1740998000924,0.01699415,92321.0,92310.0,0.00057118]
[1740998001126,0.3,92319.0,92310.0,0.00057118]
[1740998001302,0.01699415,92321.0,92310.0,0.00057118]
[1740998001667,0.01699415,92321.0,92317.0,0.162483]
[1740998001876,0.01699415,92321.0,92312.0,0.0001704]
[1740998002035,0.01699415,92321.0,92320.0,0.162478]
[1740998002663,0.01699415,92321.0,92320.0,0.289978]
[1740998003216,0.01699415,92321.0,92320.0,0.30111088]
[1740998003581,0.0003408,92352.0,92351.0,0.162423]
[1740998003930,0.0003408,92352.0,92344.0,0.0768]
[1740998004189,0.01732925,92352.0,92344.0,0.0768]
[1740998004702,0.01732925,92352.0,92330.0,0.18084757]
[1740998004908,0.17987197,92352.0,92342.0,0.162439]
[1740998005057,0.162423,92351.0,92342.0,0.162439]
[1740998005255,0.01744897,92352.0,92343.0,0.0449]
[1740998005748,0.02044897,92352.0,92343.0,0.0449]
[1740998005927,0.162436,92344.0,92343.0,0.001]
[1740998006127,0.01744897,92352.0,92343.0,0.001]
[1740998006336,0.162433,92346.0,92343.0,0.001]
[1740998006920,0.162431,92347.0,92343.0,0.001]
[1740998007545,0.162436,92344.0,92343.0,0.001]
[1740998007963,0.162445,92339.0,92331.0,0.0758]
[1740998008155,0.162448,92337.0,92327.0,0.162464]
[1740998008354,0.216583,92344.0,92323.0,0.0777]
[1740998008683,0.01699154,92335.0,92323.0,0.0777]
[1740998008883,0.4840943,92344.0,92343.0,0.001]
[1740998009118,0.58083515,92344.0,92343.0,0.001]
[1740998009261,0.162478,92320.0,92311.0,0.162493]
[1740998009423,0.3,92332.0,92310.0,0.0001703]
[1740998009638,0.3,92328.0,92317.0,0.216644]
[1740998009837,0.3,92328.0,92310.0,0.0001703]
[1740998010051,0.462465,92328.0,92310.0,0.18101787]
[1740998010251,0.3,92328.0,92310.0,0.0001703]
[1740998010456,0.01129109,92329.0,92310.0,0.0001703]
[1740998010457,0.3,92326.0,92310.0,0.0001703]
[1740998010670,0.3,92326.0,92312.0,0.00057128]
[1740998010870,0.3,92326.0,92317.0,0.216643]
[1740998011073,0.3,92326.0,92317.0,0.162482]
[1740998011312,0.3,92326.0,92320.0,0.162476]
[1740998011515,0.3,92326.0,92312.0,0.00057128]
[1740998011711,0.01699438,92324.0,92312.0,0.00157128]
[1740998012031,0.01699438,92324.0,92312.0,0.00057128]
[1740998012244,0.162488,92315.0,92312.0,0.00057128]
[1740998012388,0.162481,92318.0,92317.0,0.001]
[1740998012587,0.23362438,92324.0,92312.0,0.00057128]
[1740998012588,0.01699438,92324.0,92312.0,0.00057128]
[1740998012790,0.16249,92313.0,92312.0,0.00057128]
[1740998012973,0.16249,92313.0,92312.0,0.00257128]
[1740998013207,0.21664,92319.0,92312.0,0.00257128]
[1740998013411,0.01699586,92313.0,92312.0,0.00257128]
[1740998014175,0.17948586,92313.0,92312.0,0.00057128]
[1740998014589,0.01699586,92313.0,92312.0,0.00057128]
[1740998015181,0.01699586,92313.0,92312.0,0.00557128]
[1740998015349,0.01699586,92313.0,92312.0,0.00057128]
[1740998015736,0.01699586,92313.0,92312.0,0.00357128]
[1740998015956,0.17948586,92313.0,92312.0,0.00357128]
[1740998016162,0.01699586,92313.0,92312.0,0.00357128]
[1740998016330,0.01699586,92313.0,92312.0,0.16606328]
[1740998016760,0.216576,92347.0,92312.0,0.13608775]
[1740998016895,0.0003408,92352.0,92312.0,0.13608775]
[1740998016896,0.0003408,92343.0,92312.0,0.13608775]
[1740998017112,0.162467,92326.0,92317.0,0.162482]
[1740998017309,0.0003408,92343.0,92312.0,0.13457128]
[1740998017483,0.0003408,92343.0,92312.0,0.13157128]
[1740998017684,0.0003408,92343.0,92312.0,0.13657128]
[1740998017933,0.162459,92331.0,92312.0,0.13157128]
[1740998018135,0.162459,92331.0,92321.0,0.162475]
[1740998018335,0.216603,92335.0,92319.0,0.216639]
[1740998018486,0.162459,92331.0,92321.0,0.162475]
[1740998018691,0.0003408,92343.0,92312.0,0.13157128]
[1740998018950,0.162464,92328.0,92319.0,0.162479]
[1740998019507,0.216613,92331.0,92312.0,0.13157128]
[1740998019508,0.162462,92329.0,92312.0,0.13157128]
[1740998019759,0.162459,92331.0,92322.0,0.162474]
[1740998019912,0.004,92335.0,92319.0,0.18084757]
[1740998020096,0.01699383,92325.0,92324.0,0.162471]
[1740998020846,0.01699383,92325.0,92323.0,0.162471]
[1740998021085,0.01699383,92325.0,92313.0,0.216654]
[1740998021261,0.01699383,92325.0,92324.0,0.163471]
[1740998022276,0.01699383,92325.0,92324.0,0.16498734]
[1740998022494,0.01699383,92325.0,92324.0,0.24818734]
[1740998022820,0.01699383,92325.0,92324.0,0.25910624]
[1740998023029,0.01699383,92325.0,92324.0,0.3043899]
[1740998023607,0.01703383,92325.0,92324.0,0.3043899]
[1740998023807,0.01703383,92325.0,92324.0,0.6314899]
[1740998024224,0.01703383,92325.0,92324.0,0.6304899]
[1740998025243,0.01803383,92325.0,92324.0,0.6304899]
[1740998025449,0.01903383,92325.0,92324.0,0.6364899]
[1740998025644,0.01703383,92325.0,92324.0,0.6304899]
[1740998026055,0.01803383,92325.0,92324.0,0.6304899]
[1740998027349,0.01903383,92325.0,92324.0,0.6374899]
[1740998027869,0.01907383,92325.0,92324.0,0.6374899]
[1740998030297,0.01907383,92325.0,92324.0,0.626571]
[1740998030826,0.00208,92325.0,92324.0,0.626571]
[1740998031428,0.00108,92325.0,92324.0,0.626571]
[1740998031723,0.00108,92325.0,92324.0,0.619571]
[1740998031966,0.00108,92325.0,92324.0,0.625571]
[1740998032697,0.01807142,92325.0,92324.0,0.625571]
[1740998034683,0.01807142,92325.0,92324.0,0.298471]
[1740998035209,0.01807142,92325.0,92324.0,0.215271]
[1740998035780,0.00108,92325.0,92324.0,0.215271]
[1740998036343,0.00108,92325.0,92324.0,0.291971]
[1740998037325,0.00108,92325.0,92324.0,0.30651185]
[1740998038309,0.00108,92325.0,92324.0,0.30668225]
[1740998040591,0.00108,92325.0,92324.0,0.3687414]
[1740998044535,0.00108,92325.0,92324.0,0.2921414]
[1740998047785,0.00108,92325.0,92324.0,0.2154414]
[1740998048919,0.01807075,92325.0,92324.0,0.2154414]
[1740998049559,0.01807075,92325.0,92324.0,0.1686414]
[1740998051628,0.01807075,92325.0,92324.0,0.17015754]
[1740998052037,0.01807075,92325.0,92324.0,0.31079839]
[1740998052241,0.01807075,92325.0,92324.0,0.30928225]
[1740998052641,0.01807075,92325.0,92324.0,0.63638225]
[1740998052839,1e-07,92325.0,92324.0,0.93638225]
[1740998053039,0.0003808,92343.0,92342.0,0.289339]
[1740998053240,0.0003808,92343.0,92342.0,0.63097985]
[1740998053491,8e-07,92343.0,92342.0,0.70757985]
[1740998053790,8e-07,92343.0,92342.0,1.00757985]
[1740998054115,0.0010008,92343.0,92342.0,1.00757985]
[1740998054362,0.0010008,92343.0,92342.0,1.00798073]
[1740998054723,8e-07,92343.0,92342.0,1.00798073]
[1740998054895,0.0010008,92343.0,92342.0,1.00798073]
[1740998055102,0.0010008,92343.0,92342.0,1.02116346]
[1740998055250,0.0010008,92343.0,92342.0,1.01616346]
[1740998055653,0.0010008,92343.0,92342.0,1.02216346]
[1740998058204,0.0010008,92343.0,92342.0,0.62049988]
[1740998058636,0.0010008,92343.0,92342.0,0.49593988]
[1740998059637,0.0010008,92343.0,92342.0,0.00640088]
[1740998059892,0.1634378,92343.0,92342.0,0.00640088]
[1740998060523,0.1624378,92343.0,92342.0,0.00640088]
[1740998061076,0.1624378,92343.0,92342.0,0.00040088]
[1740998061283,0.17942797,92343.0,92342.0,0.00240088]
[1740998061444,0.17942797,92343.0,92342.0,0.00040088]
[1740998061646,0.01699097,92343.0,92342.0,0.24133988]
[1740998061870,0.01699097,92343.0,92342.0,0.25335935]
[1740998062045,0.01699097,92343.0,92342.0,0.17502975]
[1740998062255,0.01733177,92343.0,92342.0,0.17502975]
[1740998062677,0.01733177,92343.0,92342.0,0.17402975]
[1740998062880,0.01733177,92343.0,92342.0,0.17502975]
[1740998063199,0.162386,92372.0,92355.0,0.3]
[1740998063416,0.33242782,92385.0,92359.0,0.162408]
[1740998063703,0.162374,92379.0,92359.0,0.162409]
[1740998063918,0.162374,92379.0,92349.0,0.3]
[1740998064077,0.216493,92382.0,92360.0,0.162407]
[1740998064274,0.162375,92379.0,92360.0,0.162407]
[1740998064503,0.22022363,92381.0,92360.0,0.162406]
[1740998064699,0.05785263,92381.0,92361.0,0.162406]
[1740998064903,0.05785263,92381.0,92353.0,0.3]
[1740998064904,0.016986,92375.0,92353.0,0.3]
[1740998065881,0.016986,92375.0,92363.0,0.162402]
[1740998066086,0.016986,92375.0,92362.0,0.162404]
[1740998066295,0.016986,92375.0,92366.0,0.162396]
[1740998066499,0.016986,92375.0,92360.0,0.18084757]
[1740998066681,0.016986,92375.0,92352.0,0.00151575]
[1740998066886,0.016986,92375.0,92354.0,0.3]
[1740998067134,0.016986,92375.0,92355.0,0.00151567]
[1740998067338,0.016986,92375.0,92371.0,0.162387]
[1740998067515,0.016986,92375.0,92372.0,0.162385]
[1740998067716,0.016986,92375.0,92360.0,0.001]
[1740998067717,0.017986,92375.0,92374.0,0.162383]
[1740998068032,0.016986,92375.0,92374.0,0.162383]
[1740998068351,0.020986,92375.0,92374.0,0.162383]
[1740998068579,0.02110577,92375.0,92374.0,0.162383]
[1740998068784,0.02010577,92375.0,92374.0,0.162383]
[1740998068934,0.00311977,92375.0,92350.0,0.18084757]
[1740998069136,0.00311977,92375.0,92373.0,0.162384]
[1740998069335,0.00311977,92375.0,92360.0,0.216543]
[1740998069537,0.00111977,92375.0,92360.0,0.216543]
[1740998069735,0.00411977,92375.0,92371.0,0.162388]
[1740998069943,0.00411977,92375.0,92368.0,0.216523]
[1740998070318,0.00111977,92375.0,92369.0,0.162392]
[1740998070523,0.00411977,92375.0,92370.0,0.16239]
[1740998070745,0.00411977,92375.0,92370.0,0.13539]
[1740998070918,0.00311977,92375.0,92370.0,0.13539]
[1740998071124,0.00111977,92375.0,92350.0,0.18084757]
[1740998071324,0.00111977,92375.0,92151.0,0.00012157]
[1740998071325,0.00411977,92375.0,92374.0,0.162383]
[1740998071521,0.00311977,92375.0,92374.0,0.162383]
[1740998071728,0.00411977,92375.0,92374.0,0.162383]
[1740998071927,0.02110337,92375.0,92374.0,0.162383]
[1740998072264,0.02010337,92375.0,92374.0,0.162383]
[1740998072765,0.01710337,92375.0,92374.0,0.162383]
[1740998072924,0.01910337,92375.0,92374.0,0.162383]
[1740998073311,0.01710337,92375.0,92374.0,0.162383]
[1740998073572,0.01810337,92375.0,92374.0,0.162383]
[1740998075211,0.01844417,92375.0,92374.0,0.162383]
[1740998075988,0.01844417,92375.0,92374.0,0.54449845]
[1740998076187,0.00146057,92375.0,92374.0,0.55752385]
[1740998077120,0.00046057,92375.0,92374.0,0.55752385]
[1740998077511,0.00046057,92375.0,92374.0,0.56152385]
[1740998077719,0.00046057,92375.0,92374.0,0.470383]
[1740998077875,0.00046057,92375.0,92374.0,0.170383]
[1740998078458,0.00046057,92375.0,92374.0,0.162383]
[1740998078880,0.00146057,92375.0,92374.0,0.167383]
[1740998079081,0.00146057,92375.0,92374.0,0.005]
[1740998079447,0.17982507,92375.0,92374.0,0.005]
[1740998079652,0.17982507,92375.0,92374.0,0.009]
[1740998079838,0.01744407,92375.0,92374.0,0.009]
[1740998080439,0.17982507,92375.0,92374.0,0.005]
[1740998081187,0.01744407,92375.0,92359.0,0.216546]
[1740998081329,0.17982507,92375.0,92374.0,0.004]
[1740998081841,0.162388,92371.0,92364.0,0.1624]
[1740998082070,0.162388,92371.0,92365.0,0.162398]
[1740998082278,0.162386,92373.0,92360.0,0.18084757]
[1740998082475,0.162387,92372.0,92365.0,0.162397]
[1740998082882,0.162385,92373.0,92366.0,0.162396]
[1740998083202,0.162399,92365.0,92364.0,0.004]
[1740998083556,0.162399,92365.0,92364.0,0.007]
[1740998083766,0.17671095,92365.0,92364.0,0.007]
[1740998084354,0.17136429,92365.0,92364.0,0.007]
[1740998084553,0.15437804,92365.0,92364.0,0.003]
[1740998084975,0.162397,92366.0,92365.0,0.004]